bitfinex-derivatives/quotes_ETHF0:USTF0_20250909
["timestamp","ask_amount","ask_price","bid_price","bid_amount"]
[1757403849813,3.2078,4361.1,4361.0,0.4244]
[1757403850013,3.2078,4361.1,4361.0,0.7173]
[1757403850218,3.5048,4361.1,4361.0,0.7173]
[1757403850617,3.7158,4361.1,4361.0,0.7173]
[1757403850823,0.508,4361.1,4361.0,0.7173]
[1757403851524,0.297,4361.4,4361.0,0.4244]
[1757403851720,0.297,4361.3,4361.2,0.7173]
[1757403852023,0.508,4361.3,4361.2,0.7173]
[1757403852222,0.7126,4361.3,4361.2,0.4244]
[1757403852524,1.60409262,4361.3,4361.1,0.233]
[1757403852824,0.1213,4361.5,4360.7,5.04377108]
[1757403852825,0.508,4360.8,4360.7,5.04377108]
[1757403853017,0.297,4360.8,4360.7,5.04377108]
[1757403854718,0.1213,4361.0,4360.7,5.04377108]
[1757403854914,0.297,4360.9,4360.8,0.7173]
[1757403855126,3.7158,4361.7,4361.6,0.4244]
[1757403855328,3.9204,4361.7,4361.6,1.54307108]
[1757403855526,0.7126,4361.7,4361.6,1.83597108]
[1757403855825,0.297,4361.7,4361.6,1.83597108]
[1757403856021,0.297,4361.7,4361.0,3.2078]
[1757403856022,0.297,4361.6,4361.0,3.2078]
[1757403856224,1.72539262,4361.5,4361.4,0.2114]
[1757403856727,0.8339,4361.5,4361.4,0.2114]
[1757403857828,0.8339,4361.5,4361.4,0.4244]
[1757403858123,3.3291,4362.0,4361.4,1.83587108]
[1757403858325,1.08959262,4361.6,4361.5,3.9166]
[1757403858521,1.40659262,4361.6,4361.5,3.9166]
[1757403858721,0.317,4361.6,4361.5,3.9166]
[1757403858922,0.317,4361.9,4361.8,0.416]
[1757403859126,0.317,4361.9,4361.8,0.7088]
[1757403859324,0.317,4361.9,4361.8,1.82747108]
[1757403859522,0.5151,4361.9,4361.8,1.82747108]
[1757403859726,0.7229,4361.9,4361.8,0.416]
[1757403860031,0.7229,4361.9,4361.8,0.209]
[1757403860344,0.7229,4361.9,4361.6,0.233]
[1757403860526,1.61439262,4361.7,4361.6,0.233]
[1757403860928,0.7229,4361.7,4361.6,0.233]
[1757403861533,0.7229,4361.7,4361.6,0.442]
[1757403863935,0.7229,4361.7,4361.6,0.233]
[1757403866030,0.4059,4361.7,4361.5,3.2078]
[1757403866333,1.61439262,4361.6,4361.5,3.2078]
[1757403867031,0.7229,4361.4,4361.3,0.442]
[1757403867832,0.7229,4361.4,4361.3,0.233]
[1757403869043,0.5286,4361.0,4360.9,3.8568]
[1757403869349,0.8456,4361.0,4360.9,3.4168]
[1757403869540,0.4397,4361.0,4360.9,3.6238]
[1757403869740,0.6378,4361.0,4360.9,3.9166]
[1757403869940,0.8456,4361.0,4360.9,3.6238]
[1757403870343,0.8456,4361.0,4360.9,3.9166]
[1757403875254,0.6378,4361.0,4360.9,3.9166]
[1757403877255,3.8456,4361.5,4361.4,0.7088]
[1757403877446,4.0534,4361.5,4361.4,0.416]
[1757403877647,4.94489262,4361.5,4361.4,0.416]
[1757403877849,1.73709262,4361.5,4361.4,0.7088]
[1757403879754,1.73709262,4361.5,4361.4,0.416]
[1757403879958,1.73709262,4361.5,4361.2,0.233]
[1757403880257,0.5151,4361.4,4361.3,0.7088]
[1757403880556,1.61439262,4361.4,4361.3,0.416]
[1757403880855,0.7229,4361.4,4361.3,0.416]
[1757403881454,0.317,4361.4,4361.3,0.7088]
[1757403882252,0.7229,4361.4,4361.3,0.209]
[1757403882451,0.7229,4361.4,4361.2,0.233]
[1757403882650,1.61439262,4361.4,4361.2,0.233]
[1757403885054,0.89149262,4361.3,4361.2,0.233]
[1757403885262,1.61439262,4361.3,4361.2,0.233]
[1757403887363,1.61439262,4361.3,4360.9,3.2078]
[1757403887559,1.61439262,4361.3,4359.1,2.8458096]
[1757403887560,3.2078,4360.0,4359.0,2.8458096]
[1757403887754,4.53347393,4359.1,4358.2,0.3222]
[1757403887955,3.2078,4358.3,4358.2,0.3222]
[1757403888358,3.2078,4358.3,4358.2,0.5321]
[1757403888562,3.2078,4358.3,4358.2,2.0744623]
[1757403889160,3.2078,4358.3,4358.2,2.3174623]
[1757403892764,3.2078,4358.3,4358.2,6.3174623]
[1757403894255,3.2078,4358.3,4358.2,6.0744623]
[1757403894460,3.2078,4358.3,4358.2,2.3174623]
[1757403898065,4.53347393,4358.3,4358.2,1.6699623]
[1757403898251,3.2078,4358.3,4358.2,1.8798623]
[1757403898460,3.2078,4358.3,4358.2,1.9129623]
[1757403900558,3.2078,4358.3,4357.9,0.3222]
[1757403900869,1.32567393,4358.1,4358.0,1.3477623]
[1757403901464,1.32567393,4358.1,4357.8,0.3222]
[1757403901664,1.32567393,4358.1,4357.8,1.6699623]
[1757403901967,1.32567393,4358.1,4357.8,1.3477623]
[1757403902164,0.242,4358.2,4358.0,0.4437]
[1757403902469,1.32567393,4358.2,4358.0,0.4437]
[1757403902671,3.2078,4358.3,4358.1,0.5321]
[1757403902874,3.4498,4358.3,4358.2,0.3222]
[1757403903069,3.2078,4358.3,4358.2,0.3222]
[1757403903364,3.4498,4358.3,4358.0,0.4437]
[1757403903565,3.4498,4358.3,4358.0,0.1215]
[1757403903765,3.2078,4358.3,4358.2,0.5321]
[1757403903962,3.2078,4358.3,4358.2,0.7267]
[1757403904173,3.2078,4358.3,4358.2,0.3222]
[1757403904572,3.2078,4358.3,4358.2,0.5321]
[1757403904759,3.2078,4358.3,4358.0,0.4437]
[1757403905162,3.2078,4358.3,4357.5,0.3053]
[1757403905163,1.32567393,4358.2,4357.6,0.2099]
[1757403905373,0.242,4358.5,4357.6,2.0744623]
[1757403905374,3.2078,4357.7,4357.6,2.0744623]
[1757403905671,3.2078,4357.7,4357.6,0.7267]
[1757403906071,3.2078,4357.7,4357.6,0.9687]
[1757403906670,3.2078,4357.7,4357.6,4.9687]
[1757403907963,2.8839,4357.7,4357.6,4.9687]
[1757403908972,3.2078,4358.2,4358.1,0.7267]
[1757403909172,3.2078,4358.2,4358.1,0.9687]
[1757403911176,3.3225,4358.2,4358.1,0.9687]
[1757403913977,1.43367393,4359.5,4358.1,7.98931879]
[1757403913978,3.2078,4358.7,4358.1,7.98931879]
[1757403914281,0.3007,4359.2,4359.0,0.526]
[1757403914282,0.2005,4359.1,4359.0,0.526]
[1757403914481,0.43572305,4359.1,4359.0,0.768]
[1757403914684,0.43572305,4359.1,4359.0,2.1157623]
[1757403914874,0.2005,4359.1,4359.0,2.4379623]
[1757403915184,0.43593072,4359.1,4359.0,2.4379623]
[1757403915575,0.23543072,4359.1,4359.0,2.4379623]
[1757403915884,3.2078,4359.2,4359.1,0.7267]
[1757403916176,3.4083,4359.2,4359.1,2.0744623]
[1757403916376,3.4083,4359.2,4359.1,0.7267]
[1757403916585,3.6179,4359.2,4359.1,0.7267]
[1757403916780,3.6179,4359.2,4359.1,0.5321]
[1757403916979,3.6179,4359.2,4358.4,3.2078]
[1757403916980,0.7314,4358.9,4358.8,0.241]
[1757403917283,1.55469885,4358.9,4358.8,0.7522]
[1757403917586,1.23099885,4358.9,4358.8,0.947]
[1757403917776,1.55469885,4358.9,4358.8,0.947]
[1757403918174,1.23099885,4358.9,4358.8,0.947]
[1757403918590,1.55469885,4358.9,4358.8,0.947]
[1757403918884,1.55469885,4358.9,4358.8,0.241]
[1757403920288,1.55469885,4358.9,4358.8,0.7522]
[1757403923091,1.55469885,4358.9,4358.8,0.5519]
[1757403923286,1.55469885,4358.9,4358.8,0.7522]
[1757403923510,1.55469885,4358.9,4358.8,0.5519]
[1757403924082,1.55469885,4358.9,4358.8,0.241]
[1757403925107,1.55469885,4358.9,4358.2,33.052]
[1757403925108,0.3237,4358.8,4358.2,33.052]
[1757403925305,0.7314,4357.7,4357.6,0.3109]
[1757403925599,0.4077,4357.7,4357.6,2.0679249]
[1757403926504,0.7314,4357.7,4357.6,2.0679249]
[1757403927208,0.4077,4357.7,4357.6,2.0679249]
[1757403927501,0.7314,4357.7,4357.0,0.1255]
[1757403927705,0.4077,4357.3,4357.2,0.2003]
[1757403928008,3.9392,4357.3,4357.2,0.2003]
[1757403928203,3.9392,4357.3,4357.2,1.5480623]
[1757403928405,3.6155,4357.3,4357.2,2.0537623]
[1757403928906,3.9392,4357.3,4357.2,2.0537623]
[1757403929212,3.9392,4357.3,4357.2,1.6586623]
[1757403929398,0.7314,4357.1,4357.0,0.5369]
[1757403929701,3.2078,4357.3,4357.2,2.0537623]
[1757403930101,3.2078,4357.3,4357.2,3.1746872]
[1757403930300,3.4154,4357.3,4357.2,3.1746872]
[1757403930500,3.2078,4357.3,4357.2,3.1746872]
[1757403931004,3.6155,4357.8,4357.7,0.706]
[1757403931204,3.8362288,4357.8,4357.7,0.947]
[1757403931405,3.8362288,4357.8,4357.7,2.2947623]
[1757403931607,4.1599288,4357.8,4357.7,2.2947623]
[1757403931800,4.1599288,4357.8,4357.7,2.0999623]
[1757403932003,4.1599288,4357.8,4357.7,0.241]
[1757403932201,4.7631885,4357.8,4357.7,0.241]
[1757403932903,4.7631885,4357.8,4356.7,1.1209249]
[1757403932904,0.4077,4356.8,4356.7,0.3109]
[1757403933105,3.9392,4356.8,4356.7,0.5519]
[1757403933306,4.15976792,4356.8,4356.7,1.8996623]
[1757403933807,4.15976792,4356.8,4356.7,2.0999623]
[1757403934508,3.9392,4356.8,4356.7,2.0999623]
[1757403937311,3.9392,4356.8,4356.7,1.5887623]
[1757403937512,3.9392,4356.8,4356.7,0.241]
[1757403938713,3.9392,4356.8,4356.2,0.241]
[1757403939012,0.7314,4355.7,4355.6,0.17933488]
[1757403939314,4.99613353,4355.7,4354.6,0.3109]
[1757403939507,3.4154,4354.7,4354.6,2.0537623]
[1757403939821,3.76,4354.7,4354.6,1.6586623]
[1757403940112,3.76,4354.7,4354.3,0.157]
[1757403940408,0.2076,4354.6,4354.5,0.3258]
[1757403940610,0.2076,4354.6,4354.5,0.5206]
[1757403940807,3.2078,4354.7,4354.5,1.8683623]
[1757403941108,3.2078,4354.7,4354.6,2.0537623]
[1757403941311,3.4154,4354.7,4354.6,2.0537623]
[1757403941616,3.4154,4354.7,4354.6,0.706]
[1757403942311,3.7606,4354.7,4354.1,0.3109]
[1757403942512,0.1451,4355.1,4354.3,0.3109]
[1757403942812,3.6155,4354.4,4354.3,1.8589623]
[1757403943215,3.6155,4354.4,4354.3,0.5112]
[1757403943401,3.6155,4354.4,4354.3,0.706]
[1757403944310,0.2076,4354.2,4354.1,0.7467]
[1757403944613,3.4154,4354.4,4354.3,2.0537623]
[1757403945013,3.4154,4354.4,4354.3,0.706]
[1757403945213,3.6155,4354.4,4354.3,0.5112]
[1757403945408,3.7606,4354.4,4354.3,0.3109]
[1757403945809,3.7606,4354.4,4354.3,0.5112]
[1757403946112,0.5528,4354.1,4354.0,0.4364]
[1757403946312,0.5528,4354.1,4352.6,3.2078]
[1757403946313,0.5672,4353.2,4352.6,3.2078]
[1757403946512,3.2078,4353.2,4352.9,1.3477623]
[1757403946708,3.42,4353.2,4353.1,0.3963]
[1757403946913,3.42,4353.2,4353.1,1.7440623]
[1757403947213,3.6299,4353.2,4353.1,0.7016]
[1757403948211,3.2078,4353.2,4353.1,0.7016]
[1757403948814,3.2078,4353.8,4353.7,0.7016]
[1757403949012,0.5276,4353.6,4353.5,0.6383]
[1757403949216,0.7375,4353.6,4353.5,0.6383]
[1757403949511,0.5276,4353.6,4353.5,1.8060623]
[1757403950014,0.7375,4353.6,4353.5,1.6082623]
[1757403951307,0.3154,4353.6,4353.5,1.8060623]
[1757403951513,0.5276,4353.6,4353.5,2.1113623]
[1757403951719,0.7375,4353.6,4353.5,1.8060623]
[1757403952225,0.4221,4353.6,4353.1,0.3053]
[1757403952519,0.4221,4353.6,4353.5,0.82]
[1757403952824,3.6299,4353.6,4353.5,0.82]
[1757403953017,3.6299,4353.6,4353.5,0.4237]
[1757403953320,3.6299,4353.6,4353.5,0.6222]
[1757403953523,3.6299,4353.6,4353.5,0.8247623]
[1757403954119,3.6299,4353.6,4352.8,0.17459825]
[1757403954420,3.6299,4353.6,4349.0,206.698]
[1757403954421,3.2078,4353.1,4351.1,0.3053]
[1757403954616,3.2078,4352.3,4351.2,0.3053]
[1757403954814,3.2078,4351.6,4351.5,0.1184]
[1757403955014,3.2078,4351.6,4351.5,0.4237]
[1757403955222,3.2078,4351.6,4351.2,0.3053]
[1757403955415,3.2078,4351.6,4351.3,0.3053]
[1757403955617,3.2078,4351.6,4351.4,0.3053]
[1757403955811,3.2078,4351.6,4351.5,0.3053]
[1757403956017,3.2078,4351.6,4351.5,0.5078623]
[1757403956214,3.2078,4351.6,4351.5,0.6262623]
[1757403957111,3.2078,4351.6,4351.5,0.2025623]
[1757403957415,3.2078,4351.6,4351.5,0.6262623]
[1757403958410,3.2078,4351.6,4351.5,0.8247623]
[1757403959217,3.2078,4351.6,4351.5,1.0225623]
[1757403960415,3.2078,4351.6,4351.5,0.6262623]
[1757403960620,3.2078,4351.6,4351.5,0.8247623]
[1757403960821,3.2078,4351.6,4351.5,1.0225623]
[1757403961223,3.2078,4351.6,4351.5,0.6262623]
[1757403961420,3.2078,4351.6,4351.5,0.2025623]
[1757403961619,3.2078,4351.6,4351.1,0.246]
[1757403961815,3.2078,4351.6,4351.3,0.3053]
[1757403962120,3.2078,4351.6,4351.2,0.2025623]
[1757403962326,0.59701029,4351.5,4351.3,0.2025623]
[1757403962517,3.2078,4351.6,4351.2,0.2025623]
[1757403962714,0.59700143,4351.5,4351.3,0.2025623]
[1757403962918,0.59696951,4351.4,4351.2,0.2025623]
[1757403963116,0.59696951,4351.3,4351.2,0.2025623]
[1757403963323,0.59696951,4351.3,4351.2,0.3053]
[1757403963621,4.44088692,4351.3,4350.5,0.6222]
[1757403963924,3.2078,4350.6,4350.5,0.6222]
[1757403964120,3.2078,4350.6,4350.5,0.82]
[1757403964319,3.2078,4350.6,4350.5,1.0225623]
[1757403964924,3.2078,4351.1,4351.0,0.82]
[1757403965223,3.80535945,4351.1,4351.0,0.82]
[1757403965424,3.80535945,4351.1,4351.0,1.0225623]
[1757403965622,3.2078,4351.1,4351.0,1.0225623]
[1757403965823,3.80555772,4351.1,4351.0,1.0225623]
[1757403966015,3.2078,4351.1,4351.0,1.0225623]
[1757403966216,3.80552779,4351.1,4351.0,1.0225623]
[1757403966418,3.80552779,4351.1,4350.3,0.5038]
[1757403966620,3.2078,4350.4,4350.3,0.7016]
[1757403968426,3.80583661,4350.4,4350.3,0.7016]
[1757403969220,3.80583661,4350.4,4350.3,0.3053]
[1757403969724,3.80583661,4350.4,4350.0,0.3044]
[1757403970026,0.59803661,4350.3,4350.2,0.3053]
[1757403970429,0.59803661,4350.3,4350.2,0.7063623]
[1757403971027,0.59803661,4350.3,4350.2,0.2025623]
[1757403971328,0.59803661,4350.3,4350.2,0.5078623]
[1757403971526,0.59803661,4350.3,4350.2,0.7063623]
[1757403971717,0.81899642,4350.3,4350.2,0.2025623]
[1757403972933,0.93389642,4350.3,4350.2,0.2025623]
[1757403973131,0.93389642,4350.3,4350.0,0.186]
[1757403973430,0.93389642,4350.3,4347.8,0.41396]
[1757403973431,5.06399642,4350.2,4348.9,0.3053]
[1757403973630,3.2078,4349.1,4349.0,0.82]
[1757403973823,3.80583661,4349.1,4349.0,0.82]
[1757403974027,3.80583661,4349.1,4349.0,1.0225623]
[1757403974628,3.80583661,4349.1,4349.0,5.0225623]
[1757403975221,3.80583661,4349.1,4349.0,1.2685623]
[1757403975424,3.80583661,4349.1,4349.0,0.8722623]
[1757403975622,3.80583661,4349.1,4349.0,1.0707623]
[1757403975827,4.03102201,4349.1,4349.0,0.4485623]
[1757403976131,4.02683312,4349.1,4349.0,1.0707623]
[1757403976530,4.02683312,4349.1,4349.0,0.8722623]
[1757403976729,4.02683312,4349.1,4349.0,1.0774623]
[1757403977322,4.02683312,4349.1,4349.0,0.8722623]
[1757403977528,4.02683312,4349.1,4348.6,0.0034459]
[1757403977728,0.81903312,4349.0,4348.7,0.2025623]
[1757403977927,0.81903312,4348.9,4348.7,0.2025623]
[1757403978127,0.81903312,4348.8,4348.6,0.0034459]
[1757403978329,0.81903312,4348.7,4348.6,0.5290082]
[1757403978727,0.81903312,4348.7,4348.6,0.3264459]
[1757403978932,0.81903312,4348.7,4348.6,0.7412459]
[1757403979335,0.59384772,4348.7,4348.6,0.7412459]
[1757403979732,0.59384772,4348.7,4348.6,4.7412459]
[1757403981033,0.59384772,4348.7,4348.6,0.7412459]
[1757403981637,0.59384772,4348.7,4348.6,4.7412459]
[1757403981831,3.0052377,4349.1,4349.0,0.8611]
[1757403982032,3.2078,4349.6,4349.5,0.8611]
[1757403982635,3.2078,4349.6,4349.5,4.8611]
[1757403983136,0.3053,4350.8,4350.1,0.323]
[1757403983436,0.4012,4350.5,4350.4,0.323]
[1757403983637,0.4012,4350.5,4350.2,0.246]
[1757403983638,0.2023,4350.4,4350.3,0.2052]
[1757403983834,0.7065,4350.4,4350.3,0.5282]
[1757403984435,0.7065,4350.4,4350.2,0.246]
[1757403984640,0.3053,4350.3,4350.2,0.246]
[1757403984846,0.7065,4350.3,4350.2,0.7742]
[1757403985141,0.7065,4350.3,4350.2,0.9838]
[1757403985934,3.2078,4350.4,4350.2,0.6608]
[1757403986129,3.2078,4350.4,4350.3,0.7378]
[1757403987331,0.1147,4350.8,4350.7,0.7378]
[1757403987533,3.2078,4350.9,4350.7,0.4148]
[1757403987736,3.2078,4350.9,4350.8,0.9838]
[1757403988333,3.2078,4350.9,4350.8,4.9838]
[1757403988737,3.2078,4351.4,4351.3,0.4148]
[1757403988940,3.2078,4351.4,4351.3,0.9838]
[1757403989338,0.7065,4351.1,4351.0,0.5282]
[1757403989543,0.7065,4351.1,4351.0,0.7742]
[1757403990133,0.7065,4351.1,4351.0,0.246]
[1757403991044,0.3053,4351.0,4350.1,0.323]
[1757403991340,3.609,4350.7,4350.6,0.5282]
[1757403991545,3.9143,4350.7,4350.6,0.5282]
[1757403991844,3.2078,4350.7,4350.6,0.7378]
[1757403992045,3.4067,4350.7,4350.6,0.7378]
[1757403992545,3.2078,4351.2,4350.7,0.323]
[1757403992745,3.4067,4351.2,4351.1,0.5282]
[1757403992945,3.609,4351.2,4351.1,0.5282]
[1757403993138,3.9143,4351.2,4351.1,0.5282]
[1757403993540,0.7065,4351.1,4351.0,0.246]
[1757403993947,0.5076,4351.1,4351.0,0.246]
[1757403994246,0.7065,4351.1,4351.0,0.246]
[1757403994538,0.7065,4351.1,4351.0,0.7742]
[1757403994539,0.4012,4351.1,4351.0,0.7742]
[1757403995142,0.7065,4351.1,4351.0,0.569]
[1757403995347,0.4012,4351.1,4351.0,1.1071]
[1757403995552,0.1989,4351.1,4351.0,1.1071]
[1757403996135,0.4012,4351.1,4351.0,1.1071]
[1757403996341,0.7065,4351.1,4351.0,0.7742]
[1757403997549,0.4012,4351.1,4351.0,0.7742]
[1757403997941,0.7065,4351.1,4351.0,0.7742]
[1757403999143,0.1281,4350.5,4350.0,3.2078]
[1757403999337,0.1989,4349.2,4349.1,0.7378]
[1757403999947,3.5131,4349.6,4349.2,0.323]
[1757404000144,3.712,4349.6,4349.5,0.5282]
[1757404000345,0.3053,4349.5,4349.2,0.246]
[1757404000647,0.7065,4349.5,4349.4,0.5282]
[1757404000848,0.4012,4349.5,4349.2,0.569]
[1757404001048,0.7065,4349.4,4349.3,0.323]
[1757404002846,0.7065,4349.3,4349.2,0.246]
[1757404004248,4.7065,4349.3,4349.2,0.246]
[1757404004845,0.7065,4349.3,4349.2,0.246]
[1757404005142,0.4012,4349.3,4349.2,0.7742]
[1757404005346,0.7065,4349.3,4349.2,0.7742]
[1757404005742,0.1989,4349.3,4349.2,0.9838]
[1757404006139,0.7065,4349.3,4349.2,0.9838]
[1757404006948,0.1989,4349.3,4349.2,0.9838]
[1757404007150,0.3969,4349.3,4349.2,0.9838]
[1757404007450,0.2007,4348.9,4348.8,0.9611]
[1757404008646,3.5262,4349.6,4348.9,0.3089]
[1757404008850,3.5262,4349.6,4349.5,0.8435]
[1757404008851,3.4085,4349.6,4349.5,0.8435]
[1757404009044,3.2078,4349.6,4349.5,0.8435]
[1757404009447,3.4085,4349.6,4349.5,0.8435]
[1757404010552,3.2078,4349.6,4349.5,0.8435]
[1757404011650,3.6065,4349.6,4349.5,0.8435]
[1757404012357,3.2078,4349.6,4349.5,0.8435]
[1757404012850,0.1149,4349.8,4349.7,0.4062]
[1757404013057,3.2078,4350.1,4349.7,0.9601]
[1757404013254,3.2078,4350.1,4350.0,0.1284]
[1757404013447,3.2078,4350.1,4350.0,0.8435]
[1757404014452,3.4085,4350.1,4350.0,0.8435]
[1757404014654,3.2078,4350.1,4350.0,0.8435]
[1757404014852,0.1149,4350.3,4350.2,0.4062]
[1757404015056,0.1149,4350.3,4350.2,0.7151]
[1757404015251,3.2078,4350.8,4350.2,0.7151]
[1757404015556,3.9249,4350.8,4350.7,0.2012]
[1757404015753,3.9249,4350.8,4350.7,0.5101]
[1757404016257,3.6065,4350.8,4350.7,0.7151]
[1757404016454,3.9249,4350.8,4350.7,0.7151]
[1757404017856,3.4085,4350.8,4350.7,0.7151]
[1757404018058,3.6065,4350.8,4350.7,0.7151]
[1757404018259,3.9249,4350.8,4350.7,0.5101]
[1757404018558,0.7171,4350.6,4350.5,0.245]
[1757404021055,0.1244,4350.5,4349.5,0.1284]
[1757404021363,0.7171,4349.5,4349.4,0.3089]
[1757404021553,0.7171,4349.5,4349.4,0.7541]
[1757404021958,0.7171,4349.5,4349.4,0.244]
[1757404022157,0.7904,4349.5,4349.4,0.244]
[1757404024046,0.7171,4349.5,4349.4,0.244]
[1757404024248,0.3987,4349.5,4349.4,0.9591]
[1757404024654,0.2007,4349.5,4349.4,0.9591]
[1757404024855,3.4085,4349.7,4349.6,0.7151]
[1757404025550,3.2078,4349.7,4349.6,0.7151]
[1757404026047,3.2078,4350.2,4350.0,0.1284]
[1757404026254,3.2078,4350.2,4350.1,0.9591]
[1757404028058,3.6065,4350.2,4350.1,0.9591]
[1757404028451,3.9249,4350.2,4350.1,0.9591]
[1757404028652,3.4085,4350.2,4350.1,0.9591]
[1757404028948,3.9249,4350.2,4350.1,0.9591]
[1757404029351,3.6065,4350.2,4350.1,0.9591]
[1757404029552,3.4085,4350.2,4350.1,0.9591]
[1757404029752,3.2078,4350.2,4350.1,0.9591]
[1757404030153,3.2078,4350.2,4350.1,4.9591]
[1757404030554,0.1149,4350.3,4350.2,0.7151]
[1757404031149,0.1149,4350.3,4350.2,4.7151]
[1757404031357,0.1149,4350.3,4350.2,7.752942]
[1757404032966,3.2078,4350.9,4350.2,7.752942]
[1757404033163,3.2078,4350.9,4350.8,0.7151]
[1757404033360,3.2078,4350.9,4350.8,0.9581]
[1757404033758,3.2078,4351.4,4350.9,0.3089]
[1757404034068,0.3184,4351.3,4351.0,0.5101]
[1757404034362,3.2078,4351.4,4351.0,0.5101]
[1757404034363,0.3987,4351.1,4351.0,0.5101]
[1757404034568,0.3987,4351.1,4351.0,0.8435]
[1757404035662,0.2007,4351.2,4351.1,0.4062]
[1757404035861,0.3987,4351.2,4351.1,0.7151]
[1757404036058,0.7171,4351.2,4351.1,0.7151]
[1757404036260,0.7171,4351.2,4351.1,0.5101]
[1757404036458,0.7126,4350.9,4350.1,0.312]
[1757404036758,0.0805,4351.0,4349.8,0.312]
[1757404036759,0.7126,4349.9,4349.8,0.312]
[1757404036959,0.2123,4349.2,4349.1,0.7251]
[1757404037166,0.2123,4349.2,4349.1,0.9681]
[1757404037359,0.4183,4349.2,4349.1,0.9681]
[1757404039371,0.2123,4349.5,4349.4,0.7251]
[1757404039567,0.4183,4349.5,4349.4,0.7251]
[1757404039764,0.2943,4349.4,4349.1,0.555]
[1757404039965,0.7126,4349.2,4349.1,0.555]
[1757404040262,3.9204,4349.2,4349.1,0.243]
[1757404042364,3.9204,4349.2,4349.1,0.555]
[1757404042672,3.9204,4349.2,4349.1,0.7647]
[1757404042870,3.2078,4349.7,4349.6,0.4131]
[1757404043167,3.4201,4349.7,4349.6,0.9681]
[1757404043673,3.2078,4350.2,4350.1,0.7251]
[1757404043867,3.4201,4350.2,4350.1,0.9681]
[1757404044462,3.2078,4350.2,4350.1,0.9681]
[1757404045572,3.4201,4350.2,4350.1,0.9681]
[1757404045765,3.2078,4350.2,4350.1,0.9681]
[1757404046164,3.2078,4350.2,4350.1,3.93537596]
[1757404046371,3.4201,4351.0,4350.9,0.7251]
[1757404046568,3.4201,4351.0,4350.9,0.9681]
[1757404047275,3.6261,4351.0,4350.9,0.9681]
[1757404047977,3.9204,4351.0,4350.9,0.7647]
[1757404048664,3.4201,4351.0,4350.9,0.9681]
[1757404048866,3.2078,4351.0,4350.9,0.9681]
[1757404049564,3.6261,4351.0,4350.9,0.9681]
[1757404049762,3.9204,4351.0,4350.9,0.9681]
[1757404049964,3.9204,4351.0,4350.9,0.7647]
[1757404050369,4.0009,4351.0,4350.9,0.243]
[1757404051459,3.9204,4351.0,4350.9,0.243]
[1757404052373,3.6261,4351.0,4350.9,0.9681]
[1757404053869,3.9204,4351.0,4350.9,0.7647]
[1757404054573,3.6261,4351.0,4350.9,0.9681]
[1757404055476,3.4201,4351.0,4350.9,0.9681]
[1757404055774,3.2078,4351.0,4350.9,0.9681]
[1757404055965,3.4201,4351.0,4350.9,0.9681]
[1757404056567,3.2078,4351.0,4350.9,0.9681]
[1757404057173,0.1148,4351.3,4351.2,0.7251]
[1757404057368,3.2078,4351.5,4351.2,0.4131]
[1757404057569,3.2078,4351.5,4351.4,0.7251]
[1757404057870,3.2078,4351.5,4351.4,0.9671]
[1757404058071,3.4201,4351.5,4351.4,0.9671]
[1757404058573,3.6261,4351.5,4351.4,0.9671]
[1757404059570,3.2078,4351.5,4351.4,0.9671]
[1757404059774,3.5021,4352.6,4351.7,0.312]
[1757404060072,3.9204,4352.6,4352.5,0.5217]
[1757404060272,3.9204,4352.6,4352.5,0.7637]
[1757404060464,0.7126,4352.6,4352.5,0.7637]
[1757404061771,0.7126,4352.6,4352.5,0.242]
[1757404061971,0.7126,4352.6,4352.5,0.7637]
[1757404062175,0.7126,4352.6,4352.5,0.242]
[1757404062372,0.7126,4352.6,4352.5,0.7637]
[1757404063071,0.2123,4352.6,4352.5,1.0922]
[1757404063278,0.7126,4352.6,4352.5,1.0922]
[1757404063576,0.7126,4352.6,4352.5,0.7637]
[1757404063773,0.7126,4352.6,4352.5,0.242]
[1757404064479,3.9204,4352.6,4352.5,0.242]
[1757404065776,0.124,4352.5,4352.0,0.1251]
[1757404065979,0.7126,4352.1,4352.0,0.4371]
[1757404066167,0.7126,4352.1,4352.0,0.8878]
[1757404066567,0.4183,4352.1,4352.0,1.0912]
[1757404067775,0.2123,4352.1,4352.0,1.0912]
[1757404067972,0.3041,4352.5,4352.0,1.0912]
[1757404067973,0.3041,4352.5,4352.0,0.7792]
[1757404068180,0.7308,4352.5,4352.4,0.5221]
[1757404072575,0.3041,4352.4,4352.1,0.3192]
[1757404072884,0.4267,4352.2,4352.1,0.4109]
[1757404073183,0.7308,4352.1,4352.0,0.241]
[1757404073481,3.9386,4352.1,4352.0,0.4439]
[1757404073674,3.9386,4352.1,4352.0,0.7631]
[1757404075274,3.9386,4352.1,4352.0,0.9711]
[1757404075583,3.9386,4352.1,4352.0,1.089]
[1757404075879,3.6345,4352.1,4352.0,1.089]
[1757404076279,3.419,4352.1,4352.0,1.089]
[1757404076468,3.2078,4352.1,4352.0,1.089]
[1757404076971,0.7308,4352.7,4352.6,0.2029]
[1757404077282,0.7308,4352.7,4352.6,0.24]
[1757404079173,4.96055,4352.7,4351.4,3.2078]
[1757404079379,0.2112,4351.7,4351.6,0.9701]
[1757404079582,0.2112,4351.7,4351.6,3.77339566]
[1757404079583,0.7308,4351.7,4351.6,3.77339566]
[1757404079791,0.7308,4351.7,4351.6,0.7621]
[1757404080082,0.7308,4351.7,4351.6,0.9701]
[1757404080083,0.4267,4351.7,4351.6,0.9701]
[1757404080684,0.2112,4351.7,4351.6,0.9701]